bitfinex-derivatives/quotes_ETHF0:USTF0_20251116
["timestamp","ask_amount","ask_price","bid_price","bid_amount"]
[1763309238680,3.2078,3118.9,3117.8,3.72779]
[1763309238977,3.2078,3118.9,3117.8,4.34849383]
[1763309239182,3.2078,3118.9,3117.6,2.21558821]
[1763309239183,0.47137,3119.3,3119.0,1.3399]
[1763309239372,0.4736928,3119.3,3119.2,3.2078]
[1763309239686,3.2078,3120.8,3119.3,0.51974]
[1763309239883,3.2078,3120.8,3119.8,3.2078]
[1763309240779,0.00480738,3120.6,3119.8,3.2078]
[1763309240983,0.00480738,3120.6,3120.4,3.2078]
[1763309241182,0.00480738,3120.6,3120.0,3.2078]
[1763309241484,0.00480738,3120.6,3120.4,3.2078]
[1763309241879,0.00480738,3120.6,3120.0,3.2078]
[1763309242084,3.2078,3120.3,3119.6,3.2078]
[1763309243085,3.2078,3119.7,3119.0,0.00362853]
[1763309243385,1.4764,3120.0,3119.0,0.00362853]
[1763309243386,3.2078,3119.3,3119.0,0.00362853]
[1763309243977,3.2078,3119.5,3119.0,0.00362853]
[1763309244175,0.51977,3119.2,3119.0,0.00362853]
[1763309244381,0.51974,3119.4,3119.0,0.00362853]
[1763309244790,3.72752,3119.5,3119.0,0.00362853]
[1763309244984,3.2078,3119.5,3119.0,0.00362853]
[1763309245184,0.51977,3119.2,3119.0,0.00362853]
[1763309245490,0.51974,3119.4,3119.0,0.00362853]
[1763309245691,3.2078,3119.5,3119.0,0.00362853]
[1763309245985,0.51978,3119.1,3119.0,0.00362853]
[1763309246186,0.51978,3119.1,3118.4,3.2078]
[1763309246187,0.51985,3118.7,3118.4,3.2078]
[1763309246489,0.51986,3118.7,3118.4,3.2078]
[1763309246677,0.51981,3119.0,3118.4,3.2078]
[1763309246875,3.2078,3119.1,3118.4,3.2078]
[1763309247076,0.00480738,3119.1,3118.4,3.21547772]
[1763309248087,0.00480738,3119.1,3119.0,3.2078]
[1763309248390,0.00480738,3119.1,3118.6,3.2078]
[1763309249082,0.51984,3118.8,3118.6,3.2078]
[1763309249288,0.51981,3119.0,3118.6,3.2078]
[1763309249680,0.00480738,3119.1,3118.6,3.2078]
[1763309250183,0.52459738,3119.1,3118.6,3.2078]
[1763309250886,0.51995,3118.1,3117.8,4.35046038]
[1763309251084,3.2078,3118.4,3117.8,3.2078]
[1763309251282,3.2078,3118.8,3117.8,3.2078]
[1763309251883,0.51997,3118.0,3117.8,3.21069341]
[1763309252385,0.51997,3118.0,3117.8,0.00289341]
[1763309252585,3.72777,3118.0,3117.8,0.00289341]
[1763309253090,3.2078,3118.0,3117.8,0.00289341]
[1763309253789,4.5983,3118.5,3117.8,0.00289341]
[1763309254086,3.2078,3118.4,3117.9,3.2078]
[1763309254284,0.00314621,3118.8,3117.9,3.2078]
[1763309254486,0.00314621,3118.8,3118.3,3.2078]
[1763309256279,0.51987,3118.6,3118.3,3.2078]
[1763309256485,0.00314621,3118.8,3118.3,3.2078]
[1763309257588,3.2078,3118.6,3117.9,1.14266038]
[1763309257896,0.51998,3118.0,3117.8,0.00289341]
[1763309259694,3.2078,3118.2,3117.8,0.00289341]
[1763309259895,0.51997,3118.0,3117.8,0.00289341]
[1763309260198,3.2078,3118.2,3117.8,0.00289341]
[1763309260798,0.51997,3118.0,3117.8,0.00289341]
[1763309263292,0.52002,3117.7,3117.6,0.00480738]
[1763309263498,3.72782,3117.7,3117.6,0.00480738]
[1763309264295,3.72782,3117.7,3117.6,0.00832875]
[1763309264608,1.3905,3117.6,3116.5,3.2078]
[1763309264804,0.52015,3116.9,3116.5,3.2078]
[1763309265193,3.2078,3117.2,3116.5,3.2078]
[1763309265395,3.2078,3117.7,3116.9,3.2078]
[1763309265594,0.00480738,3117.6,3117.3,3.2078]
[1763309267403,0.52006,3117.5,3117.3,3.2078]
[1763309268202,0.52012,3117.1,3117.0,0.00480738]
[1763309268401,5.73632572,3117.1,3116.3,3.2078]
[1763309268701,17.711,3117.0,3116.3,3.2078]
[1763309268897,0.52028,3116.2,3115.9,3.2078]
[1763309269102,5.06367081,3116.5,3115.9,3.2078]
[1763309269403,5.0669165,3116.5,3115.9,3.21172175]
[1763309269708,5.5871365,3116.5,3115.9,3.21172175]
[1763309269892,5.0669165,3116.5,3115.9,3.21172175]
[1763309270092,0.00324569,3116.5,3115.9,3.21172175]
[1763309270496,0.52024,3116.4,3115.9,3.21172175]
[1763309270701,0.5203,3116.0,3115.9,0.00392175]
[1763309271301,0.52038,3115.5,3115.4,3.2078]
[1763309271500,0.52042,3115.3,3115.0,3.2078]
[1763309271697,3.2078,3115.7,3115.0,3.2078]
[1763309271902,0.52036,3115.6,3115.0,3.2078]
[1763309272101,3.2078,3115.7,3115.0,3.2078]
[1763309272303,20.9128,3115.7,3115.0,3.21151161]
[1763309272600,21.43316,3115.7,3115.0,3.21151161]
[1763309272798,20.9128,3115.7,3115.0,3.21151161]
[1763309273307,3.2078,3115.7,3115.0,3.21151161]
[1763309275112,0.52037,3115.6,3115.0,3.21151161]
[1763309275308,0.52039,3115.5,3115.0,3.21151161]
[1763309275607,0.52037,3115.6,3115.0,3.21151161]
[1763309275810,0.52043,3115.3,3115.0,3.21151161]
[1763309276012,0.5204,3115.5,3115.0,3.21151161]
[1763309276504,0.52039,3115.5,3115.0,3.21151161]
[1763309276821,0.52041,3115.4,3115.0,3.21151161]
[1763309277001,20.9018,3115.7,3115.0,3.21151161]
[1763309278114,0.5204,3115.4,3115.0,3.21151161]
[1763309279118,0.52043,3115.2,3115.0,3.21151161]
[1763309279615,0.52052,3114.7,3114.5,3.2078]
[1763309279814,0.52052,3114.7,3113.7,1.69555821]
[1763309279815,0.52057,3114.4,3114.1,3.2078]
[1763309280116,0.52059,3114.3,3114.1,3.2078]
[1763309280510,0.52056,3114.5,3114.1,3.2078]
[1763309280709,0.52338254,3114.5,3114.1,3.21116154]
[1763309280914,0.52058,3114.3,3114.1,3.21116154]
[1763309281114,0.52057,3114.4,3114.1,3.21116154]
[1763309281320,0.52059,3114.3,3114.1,3.21116154]
[1763309281620,1.3751,3113.6,3112.8,3.2078]
[1763309281914,0.52073,3113.4,3112.9,3.2078]
[1763309282416,0.52081,3113.0,3112.5,3.2078]
[1763309282722,3.2078,3113.0,3112.5,3.2078]
[1763309282915,0.52086,3112.7,3112.5,3.2078]
[1763309283221,0.52101,3111.8,3111.0,3.2078]
[1763309283423,0.52101,3111.8,3110.5,0.75410577]
[1763309283424,2.53152503,3111.2,3110.5,3.44069577]
[1763309283715,0.00326108,3111.2,3111.0,3.2078]
[1763309283909,0.52436108,3111.2,3111.0,3.2078]
[1763309284104,0.52118,3110.8,3110.5,0.00235295]
[1763309284307,3.2078,3110.9,3110.5,0.00235295]
[1763309285216,17.68,3110.9,3110.5,3.21015295]
[1763309285917,3.2078,3110.8,3110.5,0.00235295]
[1763309286123,0.52133,3109.9,3109.5,3.2078]
[1763309286308,0.52136,3109.7,3109.5,3.2078]
[1763309286511,0.52136,3109.7,3107.8,3.09077349]
[1763309286512,3.21262323,3110.0,3109.0,3.2078]
[1763309286821,0.00482323,3110.0,3109.5,3.2078]
[1763309287324,0.00482323,3110.0,3109.5,3.21015285]
[1763309288321,2.53152503,3109.9,3108.7,3.2399683]
[1763309288527,1.3751,3109.5,3108.7,3.2399683]
[1763309288712,3.2078,3109.2,3108.7,0.0321683]
[1763309288920,3.2078,3109.7,3108.8,0.52149]
[1763309289320,3.2078,3109.7,3108.8,0.52514598]
[1763309289624,0.00482323,3110.0,3109.5,3.2078]
[1763309289919,0.00482323,3110.0,3109.5,4.596]
[1763309290113,0.00482323,3110.0,3109.7,0.52134]
[1763309290318,3.2078,3110.6,3110.2,0.52126]
[1763309290517,3.2078,3110.6,3109.9,3.2078]
[1763309290925,3.2078,3110.6,3109.9,3.72911]
[1763309291224,3.21262323,3110.6,3109.9,3.21262323]
[1763309291723,0.00482323,3110.6,3110.4,3.2078]
[1763309292315,3.2078,3111.0,3110.4,4.596]
[1763309292516,0.00326108,3111.2,3110.9,3.2078]
[1763309292719,3.2078,3112.0,3111.3,1.3882]
[1763309292918,3.2078,3112.0,3111.6,3.2078]
[1763309293321,1.86073854,3111.9,3111.6,3.2078]
[1763309293720,1.86337349,3111.9,3111.6,3.21016274]
[1763309294018,1.86337349,3111.9,3111.6,0.00236274]
[1763309294815,0.00263495,3111.9,3111.6,0.00236274]
[1763309295022,0.00263495,3111.9,3111.6,3.21016274]
[1763309295215,0.00263495,3111.9,3111.6,0.00236274]
[1763309295624,3.212,3115.6,3111.6,0.00236274]
[1763309295625,3.2078,3113.0,3111.8,3.2078]
[1763309295824,3.2078,3113.0,3112.2,4.596]
[1763309296126,9.93322789,3115.9,3112.3,3.2078]
[1763309296127,3.2078,3113.1,3112.3,3.2078]
[1763309296325,4.6882,3113.1,3112.3,3.2078]
[1763309296529,4.6882,3113.1,3112.3,3.72871]
[1763309296530,3.2078,3113.1,3112.3,3.72871]
[1763309296729,3.2101578,3113.1,3112.7,3.2078]
[1763309296927,3.2101578,3113.1,3112.2,3.2078]
[1763309297128,3.2101578,3113.1,3111.6,0.00236274]
[1763309297129,3.2078,3112.4,3111.6,0.00236274]
[1763309297423,3.2078,3112.4,3111.8,3.2078]
[1763309297934,3.2078,3112.4,3111.6,0.52339274]
[1763309297935,0.521,3111.8,3111.6,0.00236274]
[1763309298137,0.52103,3111.6,3111.5,0.00482323]
[1763309298332,5.74546633,3111.9,3110.4,3.2078]
[1763309298333,6.0,3111.8,3110.4,3.2078]
[1763309298625,3.2078,3112.0,3110.7,3.2078]
[1763309298833,3.2078,3112.0,3111.1,3.2078]
[1763309299020,7.985,3113.0,3111.6,3.2078]
[1763309299021,3.2078,3112.4,3111.6,3.2078]
[1763309299222,0.00482323,3112.3,3111.7,0.52582323]
[1763309299424,0.00482323,3112.3,3111.7,0.52583323]
[1763309299626,0.00482323,3112.3,3111.7,0.00482323]
[1763309299827,0.00482323,3112.3,3112.1,3.2078]
[1763309300023,0.00482323,3112.3,3111.7,3.21262323]
[1763309300230,0.52574323,3112.3,3111.7,3.21262323]
[1763309300640,0.52099,3111.9,3111.7,0.00482323]
[1763309300825,3.2078,3111.8,3111.7,0.00482323]
[1763309301129,0.5211,3111.3,3111.1,0.00299161]
[1763309301333,3.2078,3111.2,3111.1,0.00299161]
[1763309301722,3.2078,3111.2,3110.2,3.2078]
[1763309301921,3.2078,3111.2,3109.5,1.3882]
[1763309301922,0.52132,3109.9,3109.8,3.2078]
[1763309302230,0.00482323,3110.2,3109.8,3.2078]
[1763309302625,3.72896,3110.9,3109.8,3.72912]
[1763309302834,3.21164392,3110.9,3110.3,3.2078]
[1763309303330,0.52121,3110.6,3110.3,3.2078]
[1763309303830,0.00482323,3110.8,3110.3,3.2078]
[1763309304338,0.52124,3110.4,3109.9,3.2078]
[1763309304632,4.392e-05,3110.9,3110.8,0.52117]
[1763309304832,3.2078,3111.5,3110.8,0.52117]
[1763309304833,3.2078,3112.1,3111.0,1.5092]
[1763309305035,3.2078,3112.5,3112.1,0.52094]
[1763309305334,3.2078,3112.9,3111.7,3.2078]
[1763309305532,3.2078,3112.9,3111.6,0.84661678]
[1763309305533,3.72862,3112.9,3112.1,3.2078]
[1763309305740,3.72862,3112.9,3111.4,1.14266038]
[1763309305741,0.00482323,3112.8,3112.2,0.00482323]
[1763309306031,3.2078,3112.5,3112.2,0.00482323]
[1763309306449,5.74546633,3112.5,3111.4,3.2078]
[1763309306638,3.2078,3111.9,3111.0,3.2078]
[1763309307138,0.52101,3111.8,3111.0,3.2078]
[1763309307534,3.72877,3112.0,3111.4,3.2078]
[1763309307837,0.52099,3111.9,3111.4,3.2078]
[1763309308037,3.2078,3112.0,3111.1,0.00482323]
[1763309308238,0.52099,3111.9,3111.1,0.00482323]
[1763309308639,4.6435,3112.0,3111.1,0.00482323]
[1763309308841,0.52106,3111.5,3111.1,0.00482323]
[1763309309235,4.6435,3112.0,3111.1,0.00482323]
[1763309309452,0.52109,3111.3,3111.1,0.00482323]
[1763309309740,0.52112,3111.1,3111.0,0.00305952]
[1763309310842,3.72891,3111.2,3111.0,0.00305952]
[1763309311040,3.72891,3111.2,3110.1,4.05441678]
[1763309311041,5.74546633,3111.2,3110.1,0.84661678]
[1763309311242,0.52121,3110.6,3110.1,0.84661678]
[1763309311929,3.72891,3111.2,3110.2,0.84661678]
[1763309312141,3.72891,3111.2,3110.3,0.84661678]
[1763309312142,0.5212,3110.6,3110.3,0.84661678]
[1763309312341,3.2078,3110.8,3110.2,0.84893603]
[1763309312541,3.2078,3110.8,3110.2,0.00231925]
[1763309313043,3.2078,3110.3,3110.2,0.00231925]
[1763309313244,3.2078,3110.3,3109.6,0.52569114]
[1763309313432,0.52141,3109.4,3108.7,1.17482868]
[1763309313631,3.2078,3109.2,3108.7,0.0321683]
[1763309314037,0.52149,3108.9,3108.7,0.0321683]
[1763309314344,0.00414291,3108.9,3108.7,0.03572258]
[1763309314844,0.00414291,3108.9,3108.7,0.00355428]
[1763309315056,0.00414291,3108.9,3107.9,1.69555821]
[1763309315057,3.2078,3108.8,3107.9,3.2078]
[1763309315342,0.00414291,3108.9,3108.3,3.2078]
[1763309315739,0.52161,3108.2,3107.6,1.14266038]
[1763309315939,3.2078,3108.4,3107.6,0.00272848]
[1763309316138,2.53766633,3108.7,3107.6,0.00272848]
[1763309316342,3.2078,3111.0,3108.8,3.2078]
[1763309316542,3.2078,3111.0,3110.0,3.2078]
[1763309316741,0.52123,3110.5,3110.0,3.2078]
[1763309316941,3.2078,3110.6,3110.0,3.2078]
[1763309317142,3.72901,3110.6,3110.0,3.2078]
[1763309317338,0.52128,3110.1,3110.0,0.00841696]
[1763309317541,3.2078,3110.2,3110.0,0.00841696]
[1763309317736,3.21563464,3110.6,3110.0,0.00841696]
[1763309318136,0.52128,3110.2,3110.0,0.00841696]
[1763309318348,0.52128,3110.2,3108.7,3.2078]
[1763309318349,0.52144,3109.2,3108.7,3.2078]
[1763309318554,5.74546633,3109.5,3108.7,3.2078]
[1763309318853,0.52143,3109.3,3108.7,3.2078]
[1763309319047,0.52144,3109.2,3108.7,3.2078]
[1763309319246,0.52144,3109.2,3108.7,3.21102279]
[1763309319642,3.2078,3109.5,3108.7,3.21102279]
[1763309319952,3.2078,3109.9,3108.7,3.21102279]
[1763309320155,3.72921,3109.4,3108.7,3.21102279]
[1763309320351,3.2078,3109.4,3108.7,3.21102279]
[1763309320551,0.52137,3109.6,3108.7,3.21102279]
[1763309321349,5.74546633,3109.8,3108.7,3.21102279]
[1763309321852,0.52141,3109.4,3108.7,3.21102279]
[1763309322149,0.52142,3109.3,3108.7,3.21102279]
[1763309322453,5.74546633,3109.8,3108.7,3.21102279]
[1763309322957,0.52135,3109.7,3109.1,3.2078]
[1763309323251,5.74546633,3109.8,3109.1,3.2078]
[1763309323453,0.00783464,3110.6,3109.6,3.2078]
[1763309323454,3.2078,3110.3,3109.6,3.2078]
[1763309324450,0.52129,3110.1,3109.6,3.2078]
[1763309324650,3.2078,3110.3,3109.6,3.2078]
[1763309325154,3.2078,3110.3,3109.8,0.52132]
[1763309325357,0.00783464,3110.6,3110.2,3.2078]
[1763309325654,0.00783464,3110.6,3110.4,0.52122]
[1763309325853,3.2078,3111.4,3110.6,0.52119]
[1763309326052,3.2078,3111.4,3110.9,0.52114]
[1763309326258,3.2078,3111.4,3110.7,3.2078]
[1763309326862,0.52114,3111.0,3110.7,0.00380334]
[1763309327061,0.52111,3111.2,3110.7,0.00380334]
[1763309327354,0.52115,3110.9,3110.7,0.00380334]
[1763309327559,4.6435,3111.0,3110.1,0.00482323]
[1763309327750,3.2078,3110.5,3110.1,0.00482323]
[1763309327946,0.52125,3110.3,3110.1,0.00482323]
[1763309328553,0.52125,3110.3,3110.1,0.00707764]
[1763309330063,3.2078,3110.5,3109.9,2.75932755]
[1763309330262,0.52128,3110.1,3109.9,2.75932755]
[1763309330658,1.4357,3110.4,3109.9,2.75932755]
[1763309330860,3.2078,3110.5,3109.9,2.75932755]
[1763309331162,3.2078,3110.5,3109.9,2.76170988]
[1763309331163,0.52124,3110.4,3109.9,2.76170988]
[1763309331364,0.52127,3110.2,3109.9,2.76170988]
[1763309331764,3.2078,3110.5,3109.9,2.76170988]
[1763309331765,0.5213,3110.1,3109.9,2.76170988]
[1763309331969,0.5213,3110.1,3109.9,0.00238233]
[1763309332168,0.52129,3110.1,3109.9,0.00238233]
[1763309332664,3.2078,3110.0,3109.1,3.2078]
[1763309332868,0.52138,3109.5,3109.1,3.2078]
[1763309333171,3.7292,3109.4,3108.6,3.2078]
[1763309333371,3.2078,3109.4,3108.6,3.2078]
[1763309333571,3.2078,3109.4,3108.6,3.21049588]
[1763309333966,3.2078,3109.4,3108.6,3.73201588]
[1763309334165,0.52143,3109.3,3108.6,3.21049588]
[1763309334574,0.52144,3109.2,3108.6,3.21049588]
[1763309334874,0.52145,3109.1,3108.6,3.21049588]
[1763309335172,0.00278092,3109.2,3108.6,3.21049588]
[1763309335373,0.5215,3108.8,3108.6,0.00269588]
[1763309336170,3.2078,3108.9,3108.6,0.00269588]
[1763309336468,3.2078,3108.8,3108.6,0.00269588]
[1763309337174,3.7293,3108.8,3108.6,0.00269588]
[1763309337969,3.2078,3108.8,3108.6,0.00269588]
[1763309339772,3.2078,3108.8,3108.6,1.14535626]
[1763309340167,3.7293,3108.8,3108.6,0.00269588]
[1763309340575,3.21058092,3109.2,3108.6,3.21049588]
[1763309340873,3.21058092,3109.2,3108.6,0.00269588]
[1763309341072,0.52151,3108.8,3108.6,0.00269588]
[1763309341774,3.2078,3108.7,3108.6,0.00269588]
[1763309341979,0.52169,3107.7,3107.6,1.14266038]
[1763309342269,0.5217,3107.6,3107.4,1.14266038]
[1763309342474,3.2078,3107.8,3107.4,1.14266038]
[1763309342868,3.72947,3107.8,3107.4,0.00351565]
[1763309343078,0.52171,3107.6,3107.4,0.00351565]
[1763309343768,3.2078,3107.8,3107.4,0.00351565]
[1763309343963,3.72948,3107.8,3107.4,0.00351565]
[1763309344170,0.52172,3107.5,3107.4,0.00351565]
[1763309344775,1.4471,3107.7,3107.4,0.00351565]
[1763309344976,0.5217,3107.6,3107.4,0.00351565]
[1763309345477,0.52171,3107.6,3107.4,0.00351565]
[1763309346183,1.4471,3107.7,3107.4,0.00351565]
[1763309347074,0.52171,3107.6,3107.4,0.00351565]
[1763309347582,3.2078,3107.8,3107.6,0.5217]
[1763309347768,0.00482323,3108.0,3107.8,0.52167]
[1763309348175,0.00482323,3108.0,3107.5,1.14897684]
[1763309348468,0.00482323,3108.0,3107.8,3.72947]
[1763309348669,3.2078,3108.8,3107.9,1.14897684]
[1763309348976,3.2078,3108.8,3108.4,0.52156]
[1763309349471,3.2078,3108.8,3108.3,3.2078]
[1763309349976,3.72936,3108.4,3108.2,0.00482323]
[1763309350278,0.52172,3107.5,3107.4,0.00351565]
[1763309350478,3.2078,3107.6,3107.4,0.00351565]
[1763309350673,3.72951,3107.6,3107.4,0.00351565]
[1763309350880,3.72951,3107.6,3106.5,1.14897684]
[1763309350881,0.52184,3106.8,3106.5,1.14897684]
[1763309351069,0.52184,3106.8,3105.8,3.39443212]
[1763309351070,1.4471,3106.8,3105.8,1.14897684]
[1763309351269,3.2078,3106.1,3105.0,4.35677684]
[1763309351469,3.2078,3105.6,3105.0,3.2078]
[1763309351674,1.4471,3105.9,3104.4,3.2078]
[1763309351675,3.2078,3105.2,3104.4,3.2078]
[1763309351875,0.00483122,3105.1,3104.8,3.2078]
[1763309352283,0.0030436,3105.2,3104.8,3.2078]
[1763309352678,3.2078,3106.1,3104.8,9.2078]
[1763309352882,3.2078,3106.7,3105.4,3.2078]
[1763309353178,1.4471,3106.8,3105.4,3.72985]
[1763309353179,3.2078,3106.1,3105.4,3.72985]
[1763309353380,0.00483122,3106.1,3105.4,0.00483122]
[1763309353581,3.2078,3105.7,3105.4,0.00483122]
[1763309353786,3.21128275,3105.7,3104.4,0.00271102]
[1763309353977,3.21128275,3105.7,3103.7,0.03222013]
[1763309353978,3.2078,3104.7,3103.7,0.03222013]
[1763309354172,1.4471,3105.0,3103.7,0.03222013]
[1763309354173,3.2078,3104.2,3103.7,0.03222013]
[1763309354373,3.2078,3103.8,3103.7,0.03222013]
[1763309355185,3.2078,3103.8,3102.2,14.13220398]
[1763309355186,9.2078,3103.8,3102.6,3.2078]
[1763309355386,0.00483122,3104.1,3103.5,3.2078]
[1763309355583,3.2078,3104.6,3103.5,3.2078]
[1763309355776,3.2078,3104.2,3103.5,3.2078]
[1763309356089,3.2078,3103.8,3102.6,3.2078]
[1763309356387,3.2078,3103.8,3102.6,3.73410693]
[1763309356680,3.2078,3103.4,3102.9,0.00483122]
[1763309356885,3.2078,3103.0,3102.9,0.00483122]
[1763309357080,4.664,3103.0,3102.1,3.2078]
[1763309357282,4.664,3103.0,3099.3,6.07363375]
[1763309357283,3.2078,3100.9,3099.3,6.07363375]
[1763309357473,1.4562,3102.3,3096.9,1.4232]
[1763309357474,3.2078,3099.4,3098.7,1.45547212]
[1763309357677,1.4562,3102.3,3098.8,8.10025492]
[1763309357881,1.4562,3102.3,3098.9,8.10025492]
[1763309357882,3.2078,3099.4,3098.9,8.10025492]
[1763309358175,3.2078,3099.4,3098.9,0.00375505]
[1763309358176,0.0037062,3099.4,3098.9,0.00375505]
[1763309358377,3.2078,3100.2,3099.3,3.2078]
[1763309359280,0.00484019,3100.1,3100.0,1.4232]
[1763309360889,0.00260084,3100.2,3100.0,7.4232]
[1763309361081,0.00260084,3100.2,3100.0,1.4232]
[1763309361486,3.2078,3101.0,3100.1,6.52296]
[1763309361680,3.2078,3101.0,3100.3,3.2078]
[1763309361879,3.21264019,3101.0,3100.3,3.2078]
[1763309362085,0.00484019,3101.0,3100.8,3.2078]
[1763309362275,3.2078,3102.0,3101.0,1.4232]
[1763309362482,0.00263691,3102.0,3101.3,3.2078]
[1763309362681,0.00263691,3102.0,3101.3,3.21190705]
[1763309363181,6.26713639,3101.7,3098.7,4.66327212]
[1763309363385,3.2078,3100.4,3099.6,3.2078]
[1763309363584,3.2078,3099.8,3098.8,3.21190705]
[1763309363786,3.2078,3099.3,3098.9,3.21190705]
[1763309363992,3.2078,3099.3,3098.8,3.21190705]
[1763309364196,3.2078,3098.9,3098.8,3.21425516]
[1763309364394,3.2078,3098.9,3098.8,0.00234811]
[1763309364593,0.00417693,3099.4,3098.8,0.00234811]
[1763309364783,0.00417693,3099.4,3099.3,3.2078]
[1763309365290,3.2078,3099.9,3099.3,3.2078]
[1763309365690,0.00320282,3099.9,3099.7,3.2078]
[1763309365887,0.00320282,3099.9,3099.8,0.52301]
[1763309366084,3.2078,3100.8,3099.7,3.2078]
[1763309366280,0.00484019,3100.6,3099.7,3.73081]
[1763309366690,0.00484019,3100.6,3100.0,1.4232]
[1763309366990,0.0032158,3100.6,3100.1,3.2078]
[1763309367393,0.0032158,3100.6,3100.0,1.4232]
[1763309367394,0.0032158,3100.6,3100.5,3.2078]
[1763309367595,3.2078,3101.2,3100.9,1.4232]
[1763309368100,3.2078,3102.1,3100.9,5.15382]
[1763309368388,3.2078,3102.6,3101.7,3.2078]
[1763309368587,3.21130397,3102.6,3101.7,3.2102207]
[1763309368794,3.2078,3102.1,3101.3,3.2078]
[1763309368992,3.2078,3101.7,3100.9,1.4232]
[1763309369700,3.2078,3101.1,3100.9,1.42621636]
[1763309370098,3.2078,3101.1,3100.7,0.00484019]
[1763309371301,3.2078,3101.1,3099.8,3.2078]
[1763309371486,3.2078,3100.5,3099.8,3.2078]
[1763309371692,0.81224619,3102.6,3100.3,3.2078]
[1763309371693,3.2078,3100.9,3100.3,3.2078]
[1763309372195,3.21264019,3100.9,3100.3,3.2162008]
[1763309372394,3.21264019,3100.9,3100.3,3.7391208]
[1763309372590,3.21264019,3100.9,3100.3,3.2162008]
[1763309372795,3.21264019,3100.9,3100.4,0.52291]
[1763309373005,3.21264019,3100.9,3100.3,3.7391208]
[1763309373299,3.2078,3102.0,3101.0,1.5122]
[1763309373601,3.2078,3102.0,3101.2,3.2078]
[1763309373801,3.2078,3102.0,3101.3,0.52275]
[1763309374098,3.2078,3102.0,3098.7,3.24007212]
[1763309374099,6.26713639,3101.4,3098.7,3.24007212]
[1763309374405,3.2078,3099.5,3099.1,3.2078]
[1763309374698,3.2078,3099.9,3099.2,3.2162008]
[1763309374999,3.2078,3100.2,3099.5,3.2078]
[1763309375200,3.21513423,3100.2,3100.0,1.5122]
[1763309375400,3.20673343,3100.2,3100.0,1.5122]
[1763309375897,0.00733423,3100.2,3100.0,1.5122]
[1763309376290,0.41273423,3100.2,3100.0,1.5122]
[1763309377201,0.93569423,3100.2,3100.0,1.5122]
[1763309377499,4.14349423,3100.2,3100.0,1.5122]
[1763309378002,3.62053423,3100.2,3100.0,1.5122]
[1763309378296,3.62053423,3100.2,3099.5,3.21542694]
[1763309379002,3.2078,3099.8,3099.5,0.00762694]
[1763309379904,3.62053423,3100.2,3099.5,3.21542694]
[1763309380091,3.62053423,3100.2,3100.0,1.5122]
[1763309382598,0.80874222,3100.5,3100.3,0.52291]
[1763309382797,0.80874222,3101.0,3100.1,3.2078]
[1763309382995,4.88031629,3100.9,3100.1,3.2078]
[1763309383190,0.80874222,3100.6,3099.7,3.2078]
[1763309383395,0.80874222,3100.3,3099.7,3.73082]
[1763309383607,0.86377407,3100.2,3099.8,0.523]
[1763309383908,0.00728179,3100.3,3100.2,0.52294]
[1763309384108,0.00728179,3100.3,3100.1,3.2078]
[1763309384809,0.00728179,3100.3,3100.1,3.73075]
[1763309385208,0.68016037,3100.5,3100.4,0.52291]
[1763309385406,1.09638029,3100.7,3100.5,2.03509]
[1763309385602,1.09638029,3100.7,3100.5,4.72]
[1763309386407,1.64724927,3100.7,3100.5,4.72]
[1763309386800,1.64724927,3100.7,3100.5,3.2078]
[1763309387002,0.00267883,3100.7,3100.5,3.2078]
[1763309387311,2.19276059,3100.6,3100.5,3.2078]
[1763309387807,2.19276059,3100.6,3100.1,3.2078]
[1763309388003,2.19276059,3100.4,3100.1,3.2078]
[1763309388211,2.19276059,3100.3,3100.1,3.2078]
[1763309388707,1.65569011,3100.2,3100.1,3.2078]
[1763309390315,2.19276059,3100.4,3100.1,3.2078]
[1763309390510,2.19276059,3100.3,3100.1,3.2078]
[1763309390710,4.74848156,3100.3,3099.5,3.21542694]
[1763309390918,2.55572097,3099.8,3098.2,3.2078]
[1763309391112,3.2078,3099.0,3097.8,3.2078]
[1763309391303,2.55572097,3099.2,3097.8,3.2078]
[1763309391304,1.10108866,3097.9,3097.8,3.2078]
[1763309391512,1.65378496,3097.9,3097.8,3.2078]
[1763309391707,1.10118045,3098.0,3097.8,3.2078]
[1763309391912,1.65378496,3097.9,3097.8,3.2078]
[1763309392112,1.65378496,3098.0,3097.8,3.2078]
[1763309392313,1.10420598,3098.0,3097.8,3.21115412]
[1763309392510,0.00309296,3098.0,3097.8,4.72335412]
[1763309392726,2.652e-05,3098.4,3098.2,0.52328]
[1763309392926,3.2078,3099.3,3098.3,3.2078]
[1763309393133,3.2078,3099.3,3098.8,3.2078]
[1763309393628,0.00397453,3099.3,3098.8,3.2078]
[1763309393826,0.00310123,3099.4,3099.3,0.52309]
[1763309394236,2.20504661,3100.4,3099.3,0.52309]
[1763309394237,5.41284661,3100.4,3099.3,6.0]
[1763309394425,3.2078,3100.4,3099.7,3.2078]
[1763309394924,3.21021305,3100.4,3099.9,0.52298]
[1763309395129,3.21021305,3100.4,3099.7,3.2078]
[1763309395331,3.21021305,3100.4,3099.9,0.52298]
[1763309395727,0.00241305,3100.4,3100.1,3.2078]
[1763309395928,0.83975812,3100.3,3100.1,3.2119774]
[1763309396124,0.83975812,3100.2,3100.1,3.2119774]
[1763309397333,3.2078,3100.8,3100.1,9.2119774]
[1763309397531,3.2078,3101.2,3100.5,3.2078]
[1763309397733,3.2078,3101.2,3100.5,3.21264019]
[1763309397937,3.73058,3101.2,3100.5,3.21264019]
[1763309398137,3.2078,3100.8,3100.5,0.00484019]
[1763309398325,0.52286,3100.7,3100.5,0.00484019]
[1763309398636,3.21151213,3100.8,3100.5,0.00484019]
[1763309398825,3.73436213,3100.8,3100.5,0.00484019]
[1763309399432,0.52294,3100.3,3100.1,3.2119774]
[1763309399729,3.21151213,3100.8,3100.1,0.0041774]
[1763309400135,3.73074,3100.2,3100.1,0.0041774]
[1763309400736,3.73074,3100.2,3099.5,3.2078]
[1763309400737,3.2078,3100.2,3099.0,3.2078]
[1763309400932,3.2078,3100.2,3099.4,3.73087]
[1763309401127,5.76352097,3099.8,3099.0,3.2078]
[1763309401437,3.65413675,3100.5,3097.8,3.2078]